Cogmind - Beta 16 @@@ ROGUE MODE // 2026.01.03 @ 21:04:37 Player: Brooke isn't good at these Result: Destroyed by G-47 Trooper with Particle Gun Performance ------------- Evolutions (2) 1000 Regions Visited (4) 800 Robots Destroyed (53) 265 Value Destroyed (1858) 1858 Prototype IDs (1) 20 Alien Tech Used (0) 0 Bonus (51) 51 TOTAL SCORE: 3994 Bonus ------- High Alert Combat Kills 51 Cogmind --------- Core Integrity 0/550 Matter 108/300 Energy 60/100 System Corruption 0% Temperature Critical (519) Movement Walking (120) Location -8/Materials Parts ------- > --- POWER (2) -------- (None) > --- PROPULSION (3) --- Carbon-fiber Leg > --- UTILITY (2) ------ Medium Storage Unit > --- WEAPON (4) ------- Particle Gun Light Assault Rifle > --- INVENTORY (10) --- Light Nuclear Core Aluminum Leg Improved Aluminum Leg Improved Aluminum Leg Seismic Detector Peak State ------------ > --- POWER ------------ Light Nuclear Core Light Angular Momentum Engine > --- PROPULSION ------- Aluminum Leg Improved Aluminum Leg Carbon-fiber Leg > --- UTILITY ---------- Medium Storage Unit Terrain Scanner > --- WEAPON ----------- Autogun Shotgun Shotgun Enhanced Autogun > --- INVENTORY -------- Improved Ion Engine Light Nuclear Core Improved Aluminum Leg Improved Aluminum Leg Carbon-fiber Leg Assault Rifle Light Assault Rifle Light Assault Rifle Heavy Assault Rifle Shotgun [Rating: 27] Favorites ----------- Power Light Ion Engine Engine Light Ion Engine Power Core Light Nuclear Core Propulsion Improved Aluminum Leg Leg Improved Aluminum Leg Utility Terrain Scanner Device Terrain Scanner Storage Medium Storage Unit Weapon Shotgun Energy Gun Particle Gun Ballistic Gun Shotgun Build | -11 -10 -10 -9 -8 ------- Run | Yrd Mat Min Mat Mat Slots Evolved 4 | . . . 2 2 Power 1 | . . . . 1 Propulsion 1 | . . . 1 . Utility . | . . . . . Weapon 2 | . . . 1 1 Parts Attached 36 | 6 12 3 2 13 Power 10 | 1 3 1 1 4 Engine 8 | 1 3 1 1 2 Core 2 | . . . . 2 Reactor . | . . . . . Propulsion 11 | 2 5 . 1 3 Treads . | . . . . . Leg 11 | 2 5 . 1 3 Wheel . | . . . . . Hover . | . . . . . Flight . | . . . . . Utility 3 | 1 2 . . . Device 1 | . 1 . . . Storage 2 | 1 1 . . . Processor . | . . . . . Hackware . | . . . . . Protection . | . . . . . Artifact . | . . . . . Weapon 12 | 2 2 2 . 6 Energy Gun 1 | . . . . 1 Energy Cannon . | . . . . . Ballistic Gun 11 | 2 2 2 . 5 Ballistic Cannon . | . . . . . Launcher . | . . . . . Special Weapon . | . . . . . Impact Weapon . | . . . . . Slashing Weapon . | . . . . . Piercing Weapon . | . . . . . Special Melee Weapon . | . . . . . Unidentified Prototypes 1 | . . . . 1 Parts Lost 12 | . . . . 12 Power 2 | . . . . 2 Propulsion 3 | . . . . 3 Utility 1 | . . . . 1 Weapon 6 | . . . . 6 Highest Loss Streak 12 | . . . . 12 To Critical Strikes . | . . . . . Average Backups 8 | 2 8 8 9 9 Power . | . . . . 1 Propulsion 3 | . 3 4 4 3 Utility . | . . 1 1 . Weapon 3 | . 2 3 3 3 Tool/Special . | . . . . . Unused Backups 9 | . 4 . . 5 Power 2 | . 1 . . 1 Propulsion 5 | . 2 . . 3 Utility 1 | . . . . 1 Weapon 1 | . 1 . . . Tool/Special . | . . . . . Average Slot Usage (%) 96 | . 97 100 89 96 Engine 12 | . 13 14 11 10 Core 1 | . . . . 5 Leg 26 | . 27 28 23 26 Device 11 | . 12 14 11 8 Storage 12 | . 14 14 11 9 Ballistic Gun 30 | . 27 28 33 35 Peak Build Rating 27 | 6 12 12 15 27 Average Rating 14 | 4 10 12 14 22 On Entrance 9 | . 6 12 12 15 Avg Prop Armor Cover (%) . | . . . . . Naked Turns . | . . . . . Heaviest Build 37 | 11 22 22 25 37 Greatest Support 38 | 20 26 26 36 38 Greatest Overweight (x) 1 | . 1 . . 1 Average Overweight (x) . | . . . . . Largest Inventory Capacity 10 | 8 10 10 10 10 Average Capacity 9 | 6 8 10 10 10 Most Carried 10 | 4 9 9 10 10 Average Carried 8 | 2 8 8 9 9 Final Capacity 10 | 8 10 10 10 10 Final Carried 10 | 4 9 9 10 5 Class Distribution -------------------- 58% | Mutant 24% | Scavenger-Skirmisher 17% | Skirmisher Dominant Class ---------------- Mutant | -10/Materials Mutant | -10/Mines Skirmisher | -9/Materials Scavenger-Skirmisher | -8/Materials Resources | -11 -10 -10 -9 -8 ----------- Run | Yrd Mat Min Mat Mat Matter Collected 1847 | 180 389 114 170 994 Remotely . | . . . . . Salvage Created 1881 | . 389 79 183 1230 Parts 111 | . 31 9 11 60 Haulers Intercepted . | . . . . . Recyclers Shooed 3 | . . . . 3 Parts Field Recycled . | . . . . . Retrieved Matter . | . . . . . Parts Self-Destructed . | . . . . . Prevented . | . . . . . Parts Restored . | . . . . . Kills | -11 -10 -10 -9 -8 ------- Run | Yrd Mat Min Mat Mat Combat Hostiles Destroyed 40 | . 9 6 4 21 Guns 40 | . 9 6 4 21 Classes Destroyed 11 | . 3 1 2 5 Worker 3 | . . . . 3 Builder 2 | . 1 . . 1 Tunneler 1 | . . . . 1 Recycler 1 | . . . . 1 Watcher 6 | . 3 . . 3 Swarmer 6 | . . 6 . . Grunt 27 | . 9 . 1 17 Brawler 1 | . . . 1 . Duelist 1 | . . . . 1 Protector 1 | . . . . 1 Sentry 4 | . . . 2 2 Best Kill Streak 5 | . 3 3 2 5 Combat Bots Only 5 | . 3 3 2 5 Max Kills in Single Turn 3 | . 1 2 1 3 Gunslinging 1 | . . 1 . 1 Exploded . | . . . . . Melee . | . . . . . Uniques/NPCs Destroyed . | . . . . . Combat | -11 -10 -10 -9 -8 -------- Run | Yrd Mat Min Mat Mat Hostile Shots Fired 217 | . 39 20 11 147 Missed 46 | . 12 6 3 25 Hits 171 | . 27 14 8 122 Melee 1 | . . . 1 . Projectile 170 | . 27 14 7 122 Critical Strikes 8 | . 1 . 1 6 Damage Taken 2677 | . 342 115 114 2106 Core 620 | . 56 . 12 552 Absorbed by Shields . | . . . . . Core Remaining (%) 91 | 100 . 77 97 . Volleys Fired 124 | . 30 10 8 76 Largest 4 | . 2 2 3 4 Hottest 94 | . 46 46 69 94 Shots Fired 383 | . 60 20 24 279 Gun 383 | . 60 20 24 279 Cannon . | . . . . . Launcher . | . . . . . Special . | . . . . . Kinetic 381 | . 60 20 24 277 Thermal 2 | . . . . 2 Explosive . | . . . . . Electromagnetic . | . . . . . Robot Hit Streak 10 | . 10 6 10 7 Robot Miss Streak 8 | . 8 6 4 6 Penetration Max . | . . . . . Secondary Targets 9 | . 2 2 . 5 Max Gunslinging Chain 2 | . 1 1 . 2 Shots Hit Robots 217 | . 37 9 17 154 Core Hits 124 | . 28 6 9 81 Critical Kills . | . . . . . Critical Parts Destroyed . | . . . . . Critical Strikes . | . . . . . Melee Attacks . | . . . . . Impact . | . . . . . Slashing . | . . . . . Piercing . | . . . . . Sneak Attacks . | . . . . . Combat Hostiles . | . . . . . Follow-up Attacks . | . . . . . Damage Inflicted 3800 | . 587 112 275 2826 Guns 3313 | . 587 107 275 2344 Cannons . | . . . . . Explosions 476 | . . . . 476 Melee . | . . . . . Ramming 11 | . . 5 . 6 Kinetic 3284 | . 587 107 275 2315 Thermal 505 | . . . . 505 Explosive . | . . . . . Electromagnetic . | . . . . . Impact . | . . . . . Slashing . | . . . . . Piercing . | . . . . . Highest Corruption . | . . . . . Average Corruption . | . . . . . Corruption Purged . | . . . . . Corruption Blocked . | . . . . . Overload Shots . | . . . . . Overflow Damage 79 | . . . . 79 Projectiles . | . . . . . Explosions 79 | . . . . 79 Melee . | . . . . . Knockbacks . | . . . . . Impact . | . . . . . Kinetic . | . . . . . Secondary . | . . . . . Self-Inflicted Damage . | . . . . . Shots . | . . . . . Rammed . | . . . . . Targets Rammed 2 | . . 1 . 1 Kicked 2 | . . 1 . 1 Crushed . | . . . . . Highest Temperature 533 | . 22 . 12 533 Average Temperature 160 | . 5 . 8 174 Received Heat Transfer 1422 | . 207 . 45 1170 Effects 12 | . . . . 12 Shutdowns 5 | . . . . 5 Energy Bleed 1 | . . . . 1 Interference 1 | . . . . 1 Matter Decay 1 | . . . . 1 Short Circuit 2 | . . . . 2 Damage (minor) 1 | . . . . 1 Damage (core) 1 | . . . . 1 Siege Activations . | . . . . . Martial Activations . | . . . . . Shielding Activations . | . . . . . Robots Disrupted . | . . . . . Combat Hostiles . | . . . . . Robots Corrupted . | . . . . . Combat Hostiles . | . . . . . Parts Fried . | . . . . . Impact Corruptions . | . . . . . Robots Melted . | . . . . . Combat Hostiles . | . . . . . Parts Melted . | . . . . . Heat Transferred 374 | . . . . 374 Parts Sabotaged . | . . . . . Parts Stolen . | . . . . . Parts Stripped . | . . . . . Power Chain Reactions . | . . . . . Alert | -11 -10 -10 -9 -8 ------- Run | Yrd Mat Min Mat Mat Maximum Alert Level 2 | . . . . 2 Low Security (%) 94 | 100 100 100 100 81 Level 1 . | . . . . 1 Level 2 5 | . . . . 17 Level 3 . | . . . . . Level 4 . | . . . . . Level 5 . | . . . . . High Security . | . . . . . Max Security . | . . . . . Peak Influence 523 | . 132 111 50 523 Initial 27 | . . . 27 8 Average 59 | . 22 27 17 141 Influence Increases 1392 | . 256 155 125 856 Destroy 0b10 Robot/C 780 | . 180 120 80 400 Destroy 0b10 Robot/NC 70 | . 20 . . 50 Destroy Leader 192 | . 56 20 30 86 Disable Machine 135 | . . . . 135 Anti-Garrison Action 150 | . . . . 150 Destroy Structure 35 | . . . . 35 Lose Combat Pursuer 30 | . . 15 15 . Influence Decreases 960 | . 256 84 176 444 Entered New Map 56 | . . . 44 12 Time Decay 668 | . 140 84 132 312 Lost Part 120 | . . . . 120 Purge Threat 116 | . 116 . . . Squads Dispatched 8 | . 3 . . 5 Investigation 2 | . 2 . . . Extermination . | . . . . . Reinforcement 3 | . 1 . . 2 Assault 2 | . . . . 2 Garrison 1 | . . . . 1 Intercept . | . . . . . Searches Triggered . | . . . . . Construction Impeded . | . . . . . Haulers Reinforced . | . . . . . Active Scanning Responses . | . . . . . Cargo Convoy Interrupts . | . . . . . Stealth | -11 -10 -10 -9 -8 --------- Run | Yrd Mat Min Mat Mat Distress Signals 3 | . . . 2 1 Communications Jammed . | . . . . . Distress Signals . | . . . . . Times Spotted 61 | . 15 7 6 33 Peak Tracking Total 6 | . 5 3 3 6 Tactical Retreats 2 | . . 1 1 . Traps | -11 -10 -10 -9 -8 ------- Run | Yrd Mat Min Mat Mat Traps Triggered 2 | . 2 . . . Indirectly . | . . . . . Trap Hack Attempts . | . . . . . Triggered . | . . . . . Disarmed . | . . . . . Reprogrammed . | . . . . . Reused . | . . . . . Traps Extracted . | . . . . . Installed . | . . . . . Triggered . | . . . . . Machines | -11 -10 -10 -9 -8 ---------- Run | Yrd Mat Min Mat Mat Machines Disabled 10 | . . . . 10 Max in Single Turn 7 | . . . . 7 Garrison Access 1 | . . . . 1 Machines Repaired . | . . . . . Machines Dismantled . | . . . . . Machines Sabotaged . | . . . . . Overloaded Fab Kills . | . . . . . Hacking | -11 -10 -10 -9 -8 --------- Run | Yrd Mat Min Mat Mat Machines Accessed 4 | . 1 1 1 1 Terminals 4 | . 1 1 1 1 Fabricators . | . . . . . Repair Stations . | . . . . . Recycling Units . | . . . . . Scanalyzers . | . . . . . Garrison Access . | . . . . . Total Hacks 6 | . 2 1 1 2 Successful 4 | . 1 1 1 1 Failed 2 | . 1 . . 1 Catastrophic . | . . . . . Database Lockouts . | . . . . . Manual 1 | . 1 . . . Terminals 6 | . 2 1 1 2 Fabricators . | . . . . . Repair Stations . | . . . . . Recycling Units . | . . . . . Scanalyzers . | . . . . . Garrison Access . | . . . . . Terminal Hacks 4 | . 1 1 1 1 Unreport Threat 1 | . 1 . . . Maintenance Status 1 | . . . 1 . Recall Reinforcements 1 | . . . . 1 Zone Layout 1 | . . 1 . . Fabricator Hacks . | . . . . . Repair Station Hacks . | . . . . . Recycling Unit Hacks . | . . . . . Scanalyzer . | . . . . . Garrison Access Hacks . | . . . . . Unauthorized Hacks . | . . . . . Terminals . | . . . . . Fabricators . | . . . . . Repair Stations . | . . . . . Recycling Units . | . . . . . Scanalyzers . | . . . . . Garrison Access . | . . . . . Data Cores Recovered . | . . . . . Used . | . . . . . Hacking Detections 3 | . 1 1 . 1 Full Trace Events . | . . . . . Feedback Events . | . . . . . Feedback Blocked . | . . . . . Robot Schematics Acquired . | . . . . . Robots Built . | . . . . . Authchips . | . . . . . Time . | . . . . . Total Robot Build Rating . | . . . . . Part Schematics Acquired . | . . . . . Parts Built . | . . . . . Authchips . | . . . . . Time . | . . . . . Total Part Build Rating . | . . . . . Part Studies Acquired . | . . . . . Parts Repaired . | . . . . . Time . | . . . . . Parts Recycled . | . . . . . Recycled Matter . | . . . . . Retrieved Matter . | . . . . . Retrieved Components . | . . . . . Parts Scanalyzed . | . . . . . Part Schematics Acquired . | . . . . . Parts Damaged . | . . . . . Bothacking | -11 -10 -10 -9 -8 ------------ Run | Yrd Mat Min Mat Mat Used RIF Installer . | . . . . . Robots Hacked . | . . . . . Non-combat . | . . . . . Combat . | . . . . . Robot Hacks Applied . | . . . . . Relay Couplers Released 2 | . . . . 2 Machine Destruction 2 | . . . . 2 Fabnet Peak Effective % . | . . . . . Robots Rewired . | . . . . . Allies Hacked . | . . . . . Hacks Repelled . | . . . . . Allies | -11 -10 -10 -9 -8 -------- Run | Yrd Mat Min Mat Mat Total Allies . | . . . . . Largest Group . | . . . . . Highest-Rated Group . | . . . . . Highest-Rated Ally . | . . . . . Total Orders . | . . . . . Ally Attacks . | . . . . . Total Damage . | . . . . . Kills . | . . . . . Allies Corrupted . | . . . . . Allies Melted . | . . . . . Intel | -11 -10 -10 -9 -8 ------- Run | Yrd Mat Min Mat Mat Active Infowar (turns) 2236 | . 650 549 306 731 Terrain 2236 | . 650 549 306 731 Robot Analysis Total . | . . . . . Derelict Logs Recovered 1 | . . 1 . . Drone Launches . | . . . . . Drone Recoveries . | . . . . . Exploration | -11 -10 -10 -9 -8 ------------- Run | Yrd Mat Min Mat Mat Turns Passed 2396 | 72 727 549 306 742 Spaces Moved 1494 | 52 489 425 206 322 Core 8 | 8 . . . . Treads . | . . . . . Legs 1486 | 44 489 425 206 322 Wheels . | . . . . . Hover . | . . . . . Flight . | . . . . . Fastest Speed 50 | 50 120 120 120 120 Average Speed 120 | 109 120 120 120 120 Slowest Speed 190 | 120 190 120 120 190 Overloaded Moves . | . . . . . Propulsion Burnouts . | . . . . . Robots Hopped . | . . . . . Potential Cave-ins . | . . . . . Cave-ins Triggered . | . . . . . Exploration Rate (%) 43 | 3 61 97 21 37 Regions Visited 4 Branch Regions 1 Pre-discovered Areas . | . . . . . Known Exits Taken 1 | . . 1 . . Unknown Exits Taken 3 | 1 1 . 1 . Scrap Searched 1 | . . 1 . . Spaces Dug . | . . . . . Terrain Destroyed 34 | . . . . 34 Melee . | . . . . . Projectile . | . . . . . AOE 34 | . . . . 34 Terrain Rammed . | . . . . . Walls Destroyed . | . . . . . Machines Disabled . | . . . . . Actions | -11 -10 -10 -9 -8 --------- Run | Yrd Mat Min Mat Mat Total 1853 | 67 567 443 246 530 Wait 132 | . 11 1 27 93 Move 1490 | 51 488 424 205 322 Hop . | . . . . . Pick Up 34 | 10 12 2 2 8 Fast Attach 12 | . 6 . 2 4 Attach 17 | 6 2 . 1 8 Detach 3 | . 2 . . 1 Swap 14 | . 4 3 . 7 Drop 25 | . 12 2 1 10 Fire 124 | . 30 10 8 76 Melee . | . . . . . Ram . | . . . . . Kick 2 | . . 1 . 1 Crush . | . . . . . Escape Stasis . | . . . . . Rewire . | . . . . . Trap . | . . . . . Miscellaneous . | . . . . . Route ------- -11/Scrapyard -10/Materials (discovered 2 exits: *Mat / *Min) -10/Mines (discovered 2 exits: *Mat x2) -9/Materials -8/Materials History --------- Turn | Location | Event 7 | -11/Scrapyard | Discovered new exit (range 15) 73 | -11/Scrapyard | Entered Materials 173 | -10/Materials | Discovered new exit (range 12) 304 | -10/Materials | Build established: Mutant 511 | -10/Materials | Discovered new exit (range 11) 800 | -10/Materials | Entered Mines 971 | -10/Mines | Discovered new exit (range 11) 982 | -10/Mines | Identified exit to Materials 1349 | -10/Mines | Entered Materials 1349 | -9/Materials | Evolved 2 slots: Propulsion x1, Weapon x1 1416 | -9/Materials | Discovered new exit (range 3) 1648 | -9/Materials | Build established: Skirmisher 1655 | -9/Materials | Entered another Materials area 1655 | -8/Materials | Evolved 2 slots: Power x1, Weapon x1 2078 | -8/Materials | Build established: Scavenger-Skirmisher 2224 | -8/Materials | Garrison activated, responded to threat 2388 | -8/Materials | Core integrity fell below 50% 2397 | -8/Materials | Core integrity fell below 20% 2397 | -8/Materials | Destroyed by G-47 Trooper with Particle Gun Last Messages --------------- Imp. Ion Engine destroyed. K-01 Serf collects debris. Lgt. Assault Rifle broken. Overheating: Short circuit. Critical hit (Burn: +37). K-01 Serf collects debris. Critical hit (Burn: +37). Terrain Scanner destroyed. Broken Lgt. Assault Rifle destroyed. K-01 Serf collects debris. Overheating: System interference. Lgt. Assault Rifle temporarily disabled. K-01 Serf collects debris. Acquired Particle Gun. [Achievement: Hydra] K-01 Serf collects debris. Overheating: Energy bleed (-20). K-01 Serf collects debris. Overheating: Matter decay (-17). Overheating: Core damaged (-110). Map ----- +----------------------------------------------------+ | ????????????????????????????????????????##???#?# | | ????????????????????????????????????????#?##???# | | ?????????????????????????????????????#???####### | | ????????????????????????????????????##???# ### | | ??????????????????????????????????????#??# | | ????????????????????????????????????????## T | | ?????????????????????????????????????????# [ | | ?????????????????????????????????????????# ### | | ???????????????????????????????????######## ## = | | ???????????????????????????????????# # ## | | ???????????????????????????? ??????# """ # ## | | ??????????????????????????? ???????# """ + ## | | ?????????????????????? ????? ????#?# """ # ## | | ???????????????????????????????????# !# #### | | ??????????? ?????????????????????#?#= ! # # | | ?????????# ??????????????? ??????######?#%= # | | ????????## ???"??????????????############ # ! | | ???????? ???????? ? ???#? # | | ?????????# ?????????? ?? ? + | | ??######?# ?????????? ????? # [ | | ?? = ?# ????? ???????????############# # | | ??"" # ###+#???????????#??#?????#?#?# # | | ??"" # ### ############????#?#??????# # | | ?""" " + %=%[mg%=#?????????#???# #### | | ? " !| # %=""g!! #????##???????# # | | ??"" " # " kg@ ############### + | | ??"" " + " g *=# # | | #""" " # """" k%# ! # | | # * " # """ =!# # | | ???####""" #* # #######+####### | | ??????##" ########### #?# #?# | | ??????##" #?# [""" #?# | | ??????#"" "########## #?# """ #?# | | ??????#"G!! #???????# #?# """ #?#### | | ??????#"" ####????# #?# "S ##???? | | ??????###" ##???#???# #?# """ #????? | | ???????##" #######??# #?# "" == #????? | | ???????# " #??# ### = #????? | | ???????# " !! #??# T######### ##????? | | ???????# " !! #??# ## ##??##?????? | | ???????# [ !! #??# ### ##########? | | ???????# [ = #??# ## # ## | | ???????# "![= !!#??# ## # T ## | | ???????# "##+####### #### ### #? | | ?? ! # = [=!= # #? | | ?? + [!* + #? | | ???????# # """ #? | | ???????## # " ##### ################ """ ## | | ????????# #"""# #???# ###??#?????????# """ ## | | ????????#?##### #???# #?????#?????#??# #? | +----------------------------------------------------+ Best States ------------- Heat Dissipation 31 Energy Generation 27 Energy Capacity 325 Matter Stores 300 Matter Capacity 300 Sight Range 16 Terrain Scan Range 14 Terrain Scan Density 10 Evasion (%) 55 Item Schematics ----------------- None Robot Schematics ------------------ None Fabricated ------------ Nothing Repaired ---------- Nothing Studied --------- None Alien Tech Used ----------------- None Achievements -------------- GoHome() Hydra Challenges ------------ None Game ------ Seed TripodTimingObliterator Manual? 0 Play Time 00:34:38 Cumulative 5.1 hours Start 2026.01.03 @ 20:30:12 End 2026.01.03 @ 21:04:37 Sessions 1 Manual Loads 0 Difficulty Rogue Special Mode None Game No. 5 Rogue 1 Adventurer 4 Explorer 0 Win Type - Total 0 Types 0/0/0/0/0/0/0/0/0/0 Lore% 2 Gallery% 7 Achievement% 8 Wizard Run 0 Options --------- Layout 1 ASCII 0 Keyboard 0 Movement Mouse Keybinds 0 Fullscreen 1 Font 32/SmallcapsGlow Map View 50x35 Zoom Use 0% Tactical HUD 0 Map Filters NONE Filters NONE Steam 1 RUN: f39026c8-49ed-493c-9491-e90a197abc34